fUSD/lending_fUSD_20250923
["ID","MTS","AMOUNT","RATE_DAILY","PERIOD"]
[387218724,1758655838101,-26490.57168359,0.00019999,2]
[387218725,1758655838112,-684.21269939,0.00019999,2]
[387218732,1758655838591,-625435.4049268,0.00019999,2]
[387218734,1758655838601,-7821.42366537,0.0002,5]
[387218736,1758655838610,-3096536.17194309,0.0002,2]
[387218738,1758655838621,-59055.55270917,0.0002,2]
[387218740,1758655838636,-1378.17900002,0.0002,2]
[387218741,1758655838693,-3539.58506686,0.0002,2]
[387218742,1758655838816,-2157.80385771,0.0002,2]
[387218743,1758655838827,-579.2520929,0.0002,2]
[387218748,1758655840008,-247.22582798,0.000199,2]
[387218749,1758655840018,-892.41060229,0.000199,2]
[387218750,1758655840030,-705.21454568,0.000199,2]
[387218751,1758655840039,-28084.78545432,0.0002,2]
[387218752,1758655840064,-228564.80039067,0.0002,2]
[387218753,1758655840075,-21725.92649319,0.0002,2]
[387218754,1758655840087,-10340.20085,0.0002,2]
[387218755,1758655840411,-1897.44784884,0.0002,2]
[387218756,1758655840443,-922921.83002225,0.0002,2]
[387218757,1758655840458,-690.9085851,0.0002,2]
[387218758,1758655840470,-5343.64959542,0.0002,2]
[387218759,1758655840481,-1865.06417053,0.0002,2]
[387218761,1758655840513,-24848.72132711,0.0002,2]
[387218762,1758655840524,-14292.97825123,0.0002,2]
[387218763,1758655840535,-1583.66575278,0.0002,2]
[387218764,1758655840587,-184969.09990335,0.0002,2]
[387218785,1758655843214,-369.52276276,0.0001999,2]
[387218786,1758655843223,-369.52276276,0.0001999,2]
[387218787,1758655843232,-151.0,0.00019997,2]
[387218788,1758655843241,-249.57219919,0.0002,2]
[387218789,1758655843428,-418.1778,0.0002,2]
[387218792,1758655843613,152.0,0.00018519,2]
[387218794,1758655843637,2319.43096272,0.00018519,2]
[387218805,1758655846089,-8121.5844933,0.0002,2]
[387218806,1758655846251,-337204.42101333,0.0002,2]
[387218807,1758655846414,-17652.46427839,0.0002,2]
[387218808,1758655846425,-400.5,0.0002,2]
[387218809,1758655846440,-1263.80779642,0.0002,2]
[387218811,1758655846474,-3281.72674288,0.0002,2]
[387218874,1758655960772,151.0,0.0001548,2]
[387218877,1758656103596,-117.39534606,0.00019178,2]
[387218878,1758656103620,-282.60465394,0.00019178,2]
[387218879,1758656110795,-400.0,0.00019386,2]
[387218880,1758656117769,-400.0,0.00019386,2]
[387218882,1758656296219,-1238.98,0.00018909,2]
[387218883,1758656308076,160.59,0.00016712,2]
[387218884,1758656341197,163.35,0.00021945,30]
[387218885,1758656432052,1800.0,0.00030137,120]
[387218886,1758656458621,1203.59389961,0.00018,2]
[387218887,1758656603215,169.05,0.00018564,2]
[387218888,1758656613791,9900.01,0.0001854,2]
[387218889,1758656616937,-150.0,0.0001861,2]
[387218890,1758656628806,449.0,0.00018583,2]
[387218891,1758656628849,424.67,0.00018583,2]
[387218893,1758656647809,15511.57,0.00018583,2]
[387218894,1758656657406,150.0,0.00018582,7]
[387218895,1758656658464,299.0,0.00018582,2]
[387218896,1758656658487,3609.27,0.00018582,2]
[387218897,1758656901712,163.22,0.00018527,3]
[387218898,1758656914775,242.63,0.00018526,2]
[387218899,1758656935562,161.6,9.272e-05,2]
[387218900,1758656935806,95.77,0.00013908,2]
[387218901,1758656935832,65.83,0.00013908,2]
[387218902,1758656936020,161.6,0.00018544,2]
[387218903,1758656940685,290.40724461,0.0001858,2]
[387218905,1758657024920,20400.97,0.00018509,2]
[387218909,1758657032371,-1000.0,0.0001863,2]
[387218910,1758657032381,-195.0,0.00018638,2]
[387218911,1758657032390,-254.34958455,0.00018645,2]
[387218912,1758657032400,-195.0,0.00018659,2]
[387218913,1758657032409,-258.34363771,0.0001867,3]
[387218914,1758657032418,-182.82,0.0001867,2]
[387218915,1758657032428,-195.0,0.0001868,2]
[387218916,1758657032437,-500.0,0.000187,2]
[387218917,1758657032447,-202.22,0.00018709,2]
[387218918,1758657032456,-1902.56,0.00018816,2]
[387218919,1758657032465,-229.0,0.00018908,2]
[387218920,1758657032475,-300.0,0.00018908,2]
[387218921,1758657032485,-300.0,0.00018908,2]
[387218922,1758657032495,-1200.0,0.00018908,2]
[387218923,1758657032504,-8188.2,0.00018909,2]
[387218924,1758657032514,-413.04,0.00018995,2]
[387218925,1758657032523,-802.02,0.00019152,2]
[387218926,1758657032532,-277.87,0.0001919,2]
[387218927,1758657032542,-172.94,0.00019242,2]
[387218928,1758657032551,-200.0,0.00019386,2]
[387218929,1758657032560,-8151.70486776,0.00019439,2]
[387218930,1758657032572,-5270.89513224,0.00019439,2]
[387218931,1758657032581,-2410.475508,0.00019496,2]
[387218932,1758657032590,-151.0,0.000195,2]
[387218933,1758657032599,-151.0,0.00019506,2]
[387218934,1758657032608,-151.0,0.00019514,2]
[387218935,1758657032618,-151.0,0.00019514,2]
[387218936,1758657032627,-850.0,0.0001953,2]
[387218937,1758657032638,-500.0,0.00019531,2]
[387218938,1758657032647,-500.0,0.00019531,2]
[387218939,1758657032656,-500.0,0.00019531,2]
[387218940,1758657032666,-1494.0,0.00019531,2]
[387218941,1758657032675,-500.0,0.00019531,2]
[387218942,1758657032685,-500.0,0.00019531,2]
[387218943,1758657032694,-500.0,0.00019531,2]
[387218944,1758657032703,-150.0,0.00019531,2]
[387218945,1758657032713,-500.0,0.00019531,2]
[387218946,1758657032723,-150.0,0.00019531,2]
[387218947,1758657032733,-150.0,0.00019531,2]
[387218948,1758657032742,-150.0,0.00019531,2]
[387218949,1758657032751,-150.0,0.00019531,2]
[387218950,1758657032760,-150.0,0.00019531,2]
[387218951,1758657032770,-500.0,0.00019531,2]
[387218952,1758657032779,-500.0,0.00019531,2]
[387218953,1758657032789,-500.0,0.00019531,2]
[387218954,1758657032798,-150.0,0.00019531,2]
[387218955,1758657032807,-150.0,0.00019531,2]
[387218956,1758657032817,-150.33840571,0.00019531,2]
[387218957,1758657032826,-224.02304046,0.00019531,2]
[387218958,1758657032835,-150.0,0.00019531,2]
[387218959,1758657032844,-150.0,0.00019531,2]
[387218960,1758657032854,-150.0,0.00019531,2]
[387218961,1758657032863,-150.0,0.00019531,2]
[387218962,1758657032872,-150.0,0.00019531,2]
[387218963,1758657033208,-150.0,0.00019531,2]
[387218964,1758657033228,-500.0,0.00019531,2]
[387218965,1758657033238,-500.0,0.00019531,2]
[387218966,1758657033248,-150.0,0.00019531,2]
[387218967,1758657033258,-500.0,0.00019531,2]
[387218968,1758657033268,-150.0,0.00019531,2]
[387218969,1758657033277,-500.0,0.00019531,2]
[387218970,1758657033288,-500.0,0.00019531,2]
[387218971,1758657033296,-150.0,0.00019531,2]
[387218972,1758657033306,-150.0,0.00019531,2]
[387218973,1758657033315,-200.0,0.00019532,2]
[387218974,1758657033325,-151.0,0.00019532,2]
[387218975,1758657033335,-200.0,0.00019532,2]
[387218976,1758657033344,-151.0,0.00019532,2]
[387218977,1758657033354,-151.0,0.00019532,2]
[387218978,1758657033364,-151.0,0.00019532,2]
[387218979,1758657033373,-151.0,0.00019532,2]
[387218980,1758657033384,-500.0,0.00019532,2]
[387218981,1758657033394,-500.0,0.00019532,2]
[387218982,1758657033403,-151.0,0.00019532,2]
[387218983,1758657033413,-500.0,0.00019532,2]
[387218984,1758657033423,-151.0,0.00019532,2]
[387218985,1758657033433,-533.84080379,0.00019532,2]
[387218986,1758657033443,-151.0,0.00019532,2]
[387218987,1758657033453,-151.0,0.00019532,2]
[387218988,1758657033462,-151.0,0.00019532,2]
[387218989,1758657033471,-151.0,0.00019532,2]
[387218990,1758657033480,-151.0,0.00019532,2]
[387218991,1758657033489,-151.0,0.00019532,2]
[387218992,1758657033499,-151.0,0.00019532,2]
[387218993,1758657033508,-151.0,0.00019532,2]
[387218994,1758657033518,-151.0,0.00019532,2]
[387218995,1758657033527,-151.0,0.00019532,2]
[387218996,1758657033537,-151.0,0.00019532,2]
[387218997,1758657033547,-151.0,0.00019532,2]
[387218998,1758657033557,-151.0,0.00019532,2]
[387218999,1758657033567,-155.2589367,0.00019532,2]
[387219000,1758657033576,-151.0,0.00019532,2]
[387219001,1758657033586,-151.0,0.00019532,2]
[387219002,1758657033596,-151.0,0.00019532,2]
[387219003,1758657033605,-151.0,0.00019532,2]
[387219004,1758657033615,-151.0,0.00019532,2]
[387219005,1758657033625,-151.0,0.00019532,2]
[387219006,1758657033635,-151.0,0.00019532,2]
[387219007,1758657033645,-151.0,0.00019532,2]
[387219008,1758657033654,-151.0,0.00019532,2]
[387219009,1758657033664,-151.0,0.00019532,2]
[387219010,1758657033674,-200.0,0.00019532,2]
[387219011,1758657033684,-151.0,0.00019532,2]
[387219012,1758657033695,-151.0,0.00019532,2]
[387219013,1758657033705,-151.0,0.00019532,2]
[387219014,1758657033715,-151.0,0.00019532,2]
[387219015,1758657033724,-151.0,0.00019532,2]
[387219016,1758657033734,-151.0,0.00019532,2]
[387219017,1758657033743,-151.0,0.00019532,2]
[387219018,1758657033753,-500.0,0.00019532,2]
[387219019,1758657033763,-500.0,0.00019532,2]
[387219020,1758657033772,-500.0,0.00019532,2]
[387219021,1758657033782,-500.0,0.00019532,2]
[387219022,1758657033791,-500.0,0.00019532,2]
[387219023,1758657033801,-1238.98,0.00019532,2]
[387219024,1758657033810,-500.0,0.00019542,2]
[387219025,1758657033820,-500.0,0.00019542,2]
[387219026,1758657033829,-500.0,0.00019542,2]
[387219027,1758657033839,-500.0,0.00019542,2]
[387219028,1758657033851,-532.82528642,0.00019542,2]
[387219029,1758657033860,-415.93905194,0.00019542,2]
[387219030,1758657033870,-500.0,0.00019542,2]
[387219031,1758657033879,-500.0,0.00019542,2]
[387219032,1758657033890,-500.0,0.00019542,2]
[387219033,1758657033899,-500.0,0.00019542,2]
[387219034,1758657033909,-500.0,0.00019542,2]
[387219035,1758657033918,-500.0,0.00019542,2]
[387219036,1758657033927,-500.0,0.00019542,2]
[387219037,1758657033938,-296.34168484,0.00019542,2]
[387219038,1758657033948,-500.0,0.00019542,2]
[387219039,1758657033958,-40704.51,0.00019543,2]
[387219040,1758657033967,-7593.34,0.00019726,2]
[387219041,1758657033976,-500.0,0.00019805,2]
[387219042,1758657033985,-500.0,0.00019805,2]
[387219043,1758657033994,-500.0,0.00019805,2]
[387219044,1758657034003,-1494.0,0.00019805,2]
[387219045,1758657034013,-500.0,0.00019805,2]
[387219046,1758657034025,-500.0,0.00019805,2]
[387219047,1758657034034,-500.0,0.00019805,2]
[387219048,1758657034044,-150.0,0.00019805,2]
[387219049,1758657034054,-500.0,0.00019805,2]
[387219050,1758657034064,-150.0,0.00019805,2]
[387219051,1758657034074,-150.0,0.00019805,2]
[387219052,1758657034083,-150.0,0.00019805,2]
[387219053,1758657034093,-500.0,0.00019805,2]
[387219054,1758657034103,-500.0,0.00019805,2]
[387219055,1758657034112,-500.0,0.00019805,2]
[387219056,1758657034121,-150.0,0.00019805,2]
[387219057,1758657034131,-150.0,0.00019805,2]
[387219058,1758657034140,-203.0798072,0.00019805,2]
[387219059,1758657034149,-500.0,0.00019805,2]
[387219060,1758657034160,-500.0,0.00019805,2]
[387219061,1758657034169,-150.0,0.00019805,2]
[387219062,1758657034178,-500.0,0.00019805,2]
[387219063,1758657034188,-500.0,0.00019805,2]
[387219064,1758657034198,-500.0,0.00019805,2]
[387219065,1758657034207,-217.07712528,0.00019888,3]
[387219066,1758657034216,-8868.69910265,0.000199,2]
[387219067,1758657034225,-1340.88930139,0.000199,2]
[387219068,1758657034235,-1640.92574875,0.00019979,2]
[387219069,1758657034244,-208.111,0.00019988,2]
[387219070,1758657034253,-150.0,0.00019988,2]
[387219071,1758657034263,-5680.33,0.0001999,2]
[387219072,1758657034272,-442.48878763,0.00019999,5]
[387219073,1758657034281,-52578.59476468,0.00019999,2]
[387219074,1758657034294,-2579.00614352,0.00019999,2]
[387219075,1758657034303,-249.7198407,0.00019999,2]
[387219076,1758657034312,-500.0,0.00019999,2]
[387219077,1758657034321,-274.82857426,0.00019999,2]
[387219078,1758657034331,-553.77361936,0.00019999,2]
[387219079,1758657034341,-47601.51474016,0.0002,2]
[387219080,1758657034352,-509.85434807,0.0002,2]
[387219081,1758657034382,-670.45874351,0.0002,2]
[387219082,1758657034401,-666.0,0.0002,2]
[387219083,1758657034419,-148225.22326877,0.0002,2]
[387219084,1758657034428,-200.0,0.0002,2]
[387219085,1758657034437,-989.0554854,0.0002,2]
[387219086,1758657034447,-500.0,0.0002,2]
[387219087,1758657034455,-500.0,0.0002,2]
[387219088,1758657034464,-1000.0,0.0002,2]
[387219089,1758657034473,-205.65707022,0.0002,2]
[387219090,1758657034482,-530.49214389,0.0002,2]
[387219091,1758657034491,-500.0,0.0002,2]
[387219092,1758657034500,-500.0,0.0002,2]
[387219093,1758657034509,-500.0,0.0002,2]
[387219094,1758657034518,-502.44441174,0.0002,2]
[387219095,1758657034527,-500.0,0.0002,2]
[387219096,1758657034537,-400.0,0.0002,2]
[387219097,1758657034546,-248.27719,0.0002,2]
[387219098,1758657034555,-503.57109575,0.0002,2]
[387219099,1758657034564,-1000.0,0.0002,2]
[387219100,1758657034573,-500.0,0.00020079,2]
[387219101,1758657034582,-500.0,0.00020079,2]
[387219102,1758657034591,-500.0,0.00020079,2]
[387219103,1758657034600,-1494.0,0.00020079,2]
[387219104,1758657034610,-500.0,0.00020079,2]
[387219105,1758657034619,-500.0,0.00020079,2]
[387219106,1758657034628,-500.0,0.00020079,2]
[387219107,1758657034638,-150.0,0.00020079,2]
[387219108,1758657034647,-500.0,0.00020079,2]
[387219109,1758657034658,-150.0,0.00020079,2]
[387219110,1758657034667,-150.0,0.00020079,2]
[387219111,1758657034676,-350.0,0.00020079,2]
[387219112,1758657034686,-555.91322628,0.00020079,2]
[387219113,1758657034695,-500.0,0.00020079,2]
[387219114,1758657034704,-150.0,0.00020079,2]
[387219115,1758657034716,-200.0,0.00020079,2]
[387219116,1758657034725,-562.10670865,0.00020079,2]
[387219117,1758657034734,-500.0,0.00020079,2]
[387219118,1758657034743,-150.0,0.00020079,2]
[387219119,1758657034752,-150.0,0.00020079,2]
[387219120,1758657034762,-645.87310337,0.00020079,2]
[387219121,1758657034771,-500.0,0.00020079,2]
[387219122,1758657034780,-203.25,0.0002013,2]
[387219123,1758657034789,-1702.4934993,0.00020153,2]
[387219124,1758657034798,-200.0,0.000202,2]
[387219125,1758657034808,-248.27719,0.000202,2]
[387219126,1758657034817,-250.0,0.00020222,2]
[387219127,1758657034826,-150.0,0.00020236,2]
[387219128,1758657034836,-150.0,0.00020262,2]
[387219129,1758657034846,-350.0,0.00020353,2]
[387219130,1758657034855,-500.0,0.00020353,2]
[387219131,1758657034864,-500.0,0.00020353,2]
[387219132,1758657034874,-1494.0,0.00020353,2]
[387219133,1758657034883,-500.0,0.00020353,2]
[387219134,1758657034893,-500.0,0.00020353,2]
[387219135,1758657034902,-500.0,0.00020353,2]
[387219136,1758657034911,-259.33306468,0.00020353,2]
[387219137,1758657034921,-605.77174733,0.00020353,2]
[387219138,1758657034930,-217.27799786,0.00020353,2]
[387219139,1758657034939,-250.0,0.00020353,2]
[387219140,1758657034948,-151.09027267,0.00020353,2]
[387219141,1758657034957,-500.0,0.00020353,2]
[387219142,1758657034967,-278.75196163,0.00020353,2]
[387219143,1758657034976,-500.0,0.00020353,2]
[387219144,1758657034986,-24846.77,0.00020354,2]
[387219145,1758657034995,-200.0,0.00020402,2]
[387219146,1758657035005,-8868.69910259,0.00020448,2]
[387219147,1758657035016,-250.0,0.00020493,2]
[387219148,1758657035028,-2500.0,0.00020493,2]
[387219149,1758657035039,-567.4608,0.00020493,3]
[387219150,1758657035049,-300.0,0.00020493,2]
[387219151,1758657035059,-250.0,0.00020493,2]
[387219152,1758657035069,-2500.0,0.00020493,2]
[387219153,1758657035079,-195.0,0.00020493,2]
[387219154,1758657035088,-1500.0,0.000205,2]
[387219155,1758657035100,-150.0,0.000205,2]
[387219156,1758657035109,-150.0,0.000205,2]
[387219157,1758657035118,-500.0,0.000205,2]
[387219158,1758657035128,-500.0,0.000205,2]
[387219159,1758657035138,-150.0,0.000205,2]
[387219160,1758657035147,-500.0,0.000205,2]
[387219161,1758657035156,-278.72102096,0.000205,2]
[387219162,1758657035166,-371.77800496,0.000205,2]
[387219163,1758657035176,-500.0,0.000205,2]
[387219164,1758657035185,-500.0,0.000205,2]
[387219165,1758657035194,-500.0,0.000205,2]
[387219166,1758657035204,-1640.92574866,0.00020518,2]
[387219167,1758657035213,-1309.42959917,0.00020526,3]
[387219168,1758657035223,-1084.34,0.00020526,2]
[387219169,1758657035232,-2000.0,0.00020526,3]
[387219170,1758657035241,-150.0,0.00020526,2]
[387219171,1758657035250,-195.0,0.00020526,2]
[387219172,1758657035260,-250.0,0.00020526,2]
[387219173,1758657035269,-1886.46996387,0.00020526,2]
[387219174,1758657035279,-2000.0,0.00020526,3]
[387219175,1758657035288,-300.0,0.00020526,2]
[387219176,1758657035297,-300.0,0.00020526,2]
[387219177,1758657035306,-150.0,0.00020536,2]
[387219178,1758657035315,-636.0,0.00020546,2]
[387219179,1758657035324,-1000.0,0.00020548,2]
[387219180,1758657035334,-502.21514614,0.00020548,2]
[387219181,1758657035343,-1004.80262174,0.00020548,2]
[387219182,1758657035352,-420.0,0.00020611,2]
[387219183,1758657035362,-150.0,0.00020627,2]
[387219184,1758657035371,-1494.0,0.00020627,2]
[387219185,1758657035381,-221.8968327,0.00020627,2]
[387219186,1758657035391,-350.0,0.00020627,2]
[387219187,1758657035401,-500.0,0.00020627,2]
[387219188,1758657035410,-550.0,0.00020627,2]
[387219189,1758657035419,-200.0,0.00020627,2]
[387219190,1758657035428,-250.0,0.00020653,2]
[387219191,1758657035438,-2503.09,0.00020676,2]
[387219192,1758657035448,-248.2772,0.000207,2]
[387219193,1758657035458,-1680.0,0.00020711,2]
[387219194,1758657035468,-150.0,0.00020774,2]
[387219195,1758657035477,-150.0,0.00020774,2]
[387219196,1758657035487,-500.0,0.00020774,2]
[387219197,1758657035497,-500.0,0.00020774,2]
[387219198,1758657035508,-150.0,0.0002081,2]
[387219199,1758657035519,-375.87730671,0.000209,2]
[387219200,1758657035529,-1494.0,0.00020901,2]
[387219201,1758657035538,-500.0,0.00020901,2]
[387219202,1758657035547,-5680.33,0.00020986,2]
[387219203,1758657035556,-316.8,0.00020986,2]
[387219204,1758657035565,-8868.69910259,0.00020996,2]
[387219205,1758657035575,-1903.62635969,0.00021,2]
[387219206,1758657035584,-3697.9953349,0.00021,2]
[387219207,1758657035597,-9517.09542974,0.00021,2]
[387219208,1758657035606,-71248.72486606,0.00021,2]
[387219209,1758657035615,-500.0,0.00021,2]
[387219210,1758657035624,-150.0,0.00021048,2]
[387219211,1758657035634,-150.0,0.00021048,2]
[387219212,1758657035643,-500.0,0.00021048,2]
[387219213,1758657035652,-367.45659173,0.00021048,2]
[387219214,1758657035662,-500.0,0.00021048,2]
[387219215,1758657035671,-1000.0,0.00021048,2]
[387219216,1758657035681,-1640.92574866,0.00021057,2]
[387219217,1758657035691,-1000.0,0.00021096,2]
[387219218,1758657035701,-1494.0,0.00021175,2]
[387219219,1758657035711,-500.0,0.00021175,2]
[387219220,1758657035721,-248.27719,0.000212,2]
[387219221,1758657035731,-500.0,0.00021274,2]
[387219222,1758657035740,-500.0,0.00021305,2]
[387219223,1758657035749,-205.49372686,0.00021322,2]
[387219224,1758657035759,-258.54199819,0.00021322,2]
[387219225,1758657035768,-500.0,0.00021322,2]
[387219226,1758657035778,-1494.0,0.00021449,2]
[387219227,1758657035787,-500.0,0.00021449,2]
[387219228,1758657035797,-30000.0,0.00021506,2]
[387219229,1758657035807,-375.87730666,0.00021507,2]
[387219230,1758657035816,-8868.69910259,0.00021544,2]
[387219231,1758657035826,-500.0,0.00021548,2]
[387219232,1758657035836,-500.0,0.00021578,2]
[387219233,1758657035845,-500.0,0.00021596,2]
[387219234,1758657035855,-1640.92574866,0.00021596,2]
[387219235,1758657035864,-1000.0,0.00021599,2]
[387219236,1758657035874,-150.0,0.00021606,2]
[387219237,1758657035884,-549.0,0.00021644,2]
[387219238,1758657035893,-248.2772,0.000217,2]
[387219239,1758657035903,-1494.0,0.00021723,2]
[387219240,1758657035913,-500.0,0.00021723,2]
[387219241,1758657035922,-316.8,0.00021773,2]
[387219242,1758657035932,-500.0,0.00021822,2]
[387219243,1758657035942,-500.0,0.00021852,2]
[387219244,1758657035951,-275.0,0.0002187,2]
[387219245,1758657035961,-58458.49682004,0.000219,2]
[387219246,1758657035971,-5000.0,0.00021918,2]
[387219247,1758657035980,-150.0,0.00021918,2]
[387219248,1758657035990,-200.0,0.00021945,2]
[387219249,1758657035999,-1494.0,0.00021997,2]
[387219250,1758657036009,-500.0,0.00021997,2]
[387219251,1758657036021,-1504.40757028,0.00022,14]
[387219252,1758657036031,-516.64379166,0.00022,7]
[387219253,1758657036040,-217.0,0.00022,2]
[387219254,1758657036049,-169.39,0.00022,2]
[387219255,1758657036059,-777.25,0.00022,2]
[387219256,1758657036069,-8868.69910259,0.00022092,2]
[387219257,1758657036078,-500.0,0.00022096,5]
[387219258,1758657036087,-183.26500271,0.00022108,2]
[387219259,1758657036099,-3000.0,0.00022108,2]
[387219260,1758657036109,-151.0,0.00022108,2]
[387219261,1758657036118,-1000.0,0.00022108,2]
[387219262,1758657036128,-1000.0,0.00022108,2]
[387219263,1758657036138,-8565.75555911,0.00022108,2]
[387219264,1758657036146,-1000.0,0.00022108,2]
[387219265,1758657036156,-1000.0,0.00022108,2]
[387219266,1758657036165,-1000.0,0.00022108,2]
[387219267,1758657036174,-1000.0,0.00022108,2]
[387219268,1758657036184,-153.19917327,0.00022108,2]
[387219269,1758657036194,-1000.0,0.00022108,2]
[387219270,1758657036203,-1000.0,0.00022108,2]
[387219271,1758657036213,-322.6107,0.00022108,2]
[387219272,1758657036222,-1000.0,0.00022108,2]
[387219273,1758657036232,-151.0,0.00022108,2]
[387219274,1758657036241,-1000.0,0.00022108,2]
[387219275,1758657036250,-1000.0,0.00022108,2]
[387219276,1758657036260,-1000.0,0.00022108,2]
[387219277,1758657036270,-532.08898466,0.00022108,2]
[387219278,1758657036279,-1000.0,0.00022108,2]
[387219279,1758657036289,-1000.0,0.00022108,2]
[387219280,1758657036298,-1000.0,0.00022108,2]
[387219281,1758657036308,-1000.0,0.00022108,2]
[387219282,1758657036317,-1000.0,0.00022108,2]
[387219283,1758657036326,-1000.0,0.00022108,2]
[387219284,1758657036335,-1000.0,0.00022108,2]
[387219285,1758657036344,-1000.0,0.00022108,2]
[387219286,1758657036353,-157.94194144,0.00022108,2]
[387219287,1758657036362,-600.0,0.0002211,2]
[387219288,1758657036371,-375.87730666,0.00022114,2]
[387219289,1758657036381,-500.0,0.00022126,5]
[387219290,1758657036392,-1640.92574866,0.00022135,2]
[387219291,1758657036401,-2208.34744171,0.00022163,2]
[387219292,1758657036436,-454.17338685,0.00022163,2]
[387219293,1758657036449,-5045.41871396,0.00022163,2]
[387219294,1758657036458,-200.0,0.00022164,2]
[387219295,1758657036467,-150.0,0.00022167,4]
[387219296,1758657036476,-150.0,0.00022167,4]
[387219297,1758657036486,-150.0,0.00022167,4]
[387219298,1758657036495,-150.0,0.00022167,4]
[387219299,1758657036504,-150.0,0.00022167,4]
[387219300,1758657036514,-150.0,0.00022167,4]
[387219301,1758657036523,-150.0,0.00022167,4]
[387219302,1758657036532,-150.0,0.00022167,4]
[387219303,1758657036541,-166.11941055,0.00022167,4]
[387219304,1758657036550,-150.0,0.00022167,4]
[387219305,1758657036560,-153.10101638,0.00022167,4]
[387219306,1758657036569,-150.0,0.00022167,4]
[387219307,1758657036578,-157.14875339,0.00022167,4]
[387219308,1758657036587,-150.0,0.00022167,4]
[387219309,1758657036597,-150.0,0.00022167,4]
[387219310,1758657036606,-217.0,0.00022192,7]
[387219311,1758657036615,-248.27719,0.000222,2]
[387219312,1758657036624,-150.0,0.00022241,4]
[387219313,1758657036634,-1494.0,0.00022271,2]
[387219314,1758657036645,-500.0,0.00022271,2]
[387219315,1758657036654,-623.49,0.0002237,5]
[387219316,1758657036663,-1702.4934993,0.00022378,2]
[387219317,1758657036672,-94.73841641,0.000224,5]
[387219318,1758657036683,-405.26158359,0.000224,5]
[387219319,1758657036692,-167.15,0.00022459,2]
[387219320,1758657036701,-587.0,0.00022468,2]
[387219321,1758657036710,-1852.42,0.00022481,2]
[387219322,1758657036720,-974.4,0.00022481,2]
[387219323,1758657036729,-158.25,0.00022481,2]
[387219324,1758657036739,-150.0,0.00022519,4]
[387219325,1758657036748,-1494.0,0.00022545,2]
[387219326,1758657036758,-345.99519944,0.00022545,2]
[387219327,1758657036767,-12307.324324,0.00022545,2]
[387219328,1758657036777,-316.8,0.0002256,2]
[387219329,1758657036787,-8723.9,0.00022562,2]
[387219330,1758657036797,-9297.96975539,0.00022562,2]
[387219331,1758657036809,-712.1553105,0.00022562,2]
[387219332,1758657036841,-1964.33476508,0.00022562,2]
[387219333,1758657036852,-599.68191506,0.00022562,2]
[387219334,1758657036863,-2580.36825397,0.00022562,2]
[387219335,1758657036872,-150.0,0.00022578,4]
[387219336,1758657036882,-150.0,0.00022631,2]
[387219337,1758657036892,-277.06468348,0.00022639,2]
[387219338,1758657036904,-587.91294211,0.00022639,2]
[387219442,1758657039526,-353.83626,0.00020722,2]
[387219443,1758657039538,-987.05304133,0.00020722,2]
[387219444,1758657039550,-1069.9547,0.00021299,2]
[387219445,1758657039560,-6739.88770587,0.00022639,2]